fUST/lending_fUST_20250311
["ID","MTS","AMOUNT","RATE_DAILY","PERIOD"]
[355894931,1741693851529,-500.0,0.00032973,5]
[355894932,1741693851547,-166.95142515,0.00032973,5]
[355894933,1741693851557,-500.0,0.00032973,5]
[355894934,1741693851566,-500.0,0.00032973,5]
[355894935,1741693851576,-503.16641759,0.00032973,5]
[355894936,1741693851585,-500.0,0.00032973,5]
[355894937,1741693851595,-531.01255887,0.00032973,5]
[355894938,1741693851605,-500.0,0.00032973,5]
[355894939,1741693851615,-500.0,0.00032973,5]
[355894940,1741693851625,-499.91721299,0.00032973,5]
[355894941,1741693851637,-500.0,0.00032973,5]
[355894942,1741693851647,-602.93359728,0.00032973,5]
[355894943,1741693851657,-500.0,0.00032973,5]
[355894944,1741693851667,-611.80319424,0.00032973,5]
[355894945,1741693851676,-500.0,0.00032973,5]
[355894946,1741693851685,-500.44515671,0.00032973,5]
[355894947,1741693851695,-500.0,0.00032973,5]
[355894948,1741693851705,-164.21626571,0.00032973,5]
[355894949,1741693851714,-500.0,0.00032973,5]
[355894950,1741693851723,-500.0,0.00032973,5]
[355894951,1741693851734,-500.0,0.00032973,5]
[355894952,1741693851743,-343.12388121,0.00032973,2]
[355894953,1741693851753,-220.82816538,0.00032973,5]
[355894954,1741693851763,-500.0,0.00032973,5]
[355894955,1741693851772,-500.0,0.00032973,5]
[355894956,1741693851782,-500.0,0.00032973,5]
[355894957,1741693851792,-500.0,0.00032973,5]
[355894958,1741693851802,-500.0,0.00032973,5]
[355894959,1741693851811,-500.0,0.00032973,5]
[355894960,1741693851824,-500.0,0.00032973,3]
[355894961,1741693851834,-500.92128409,0.00032973,5]
[355894962,1741693851843,-406.259833,0.0003298,14]
[355894963,1741693851852,-406.259833,0.0003298,14]
[355894964,1741693851863,-472.578969,0.0003299,14]
[355894965,1741693851872,-472.578969,0.0003299,14]
[355894966,1741693851882,-142674.0,0.00033,50]
[355894967,1741693851892,-25882.0,0.00033,40]
[355894968,1741693851902,-32417.0,0.00033,29]
[355894969,1741693851912,-18316.3177,0.00033,10]
[355894970,1741693851922,-356000.0,0.00033,60]
[355894971,1741693851932,-60372.4823,0.00033,10]
[355894972,1741693851941,-151.0,0.00033,14]
[355894973,1741693851950,-151.0,0.00033,14]
[355894974,1741693851960,-151.0,0.00033,14]
[355894975,1741693851970,-151.0,0.00033,14]
[355894976,1741693851979,-151.0,0.00033,14]
[355894977,1741693851989,-151.0,0.00033,14]
[355894978,1741693851999,-151.0,0.00033,14]
[355894979,1741693852008,-151.0,0.00033,14]
[355894980,1741693852017,-151.0,0.00033,14]
[355894981,1741693852027,-472.578969,0.00033,14]
[355894982,1741693852037,-472.578969,0.00033,14]
[355894983,1741693852047,-472.578969,0.00033,14]
[355894984,1741693852056,-472.578969,0.00033,14]
[355894985,1741693852065,-472.578969,0.00033,14]
[355894986,1741693852075,-472.578969,0.00033,14]
[355894987,1741693852085,-354.438902,0.00033,14]
[355894988,1741693852095,-354.438902,0.00033,14]
[355894989,1741693852105,-354.438902,0.00033,14]
[355894990,1741693852114,-354.438903,0.00033,14]
[355894991,1741693852124,-919.178837,0.00033,14]
[355894992,1741693852133,-919.178837,0.00033,14]
[355894993,1741693852144,-919.178837,0.00033,14]
[355894994,1741693852154,-919.17883263,0.00033,14]
[355894995,1741693852164,-151.0,0.00033,14]
[355894996,1741693852174,-151.0,0.00033,14]
[355894997,1741693852184,-416.66666667,0.00033,10]
[355894998,1741693852194,-669.0945918,0.00033011,2]
[355894999,1741693852204,-1366.48632725,0.00033033,2]
[355895000,1741693852214,-151.0,0.0003305,14]
[355895001,1741693852224,-187.598928,0.0003305,14]
[355895002,1741693852235,-151.0,0.0003305,14]
[355895003,1741693852244,-693.8510917,0.00033066,2]
[355895004,1741693852254,-188.88,0.00033109,2]
[355895005,1741693852263,-719.52358209,0.00033121,2]
[355895006,1741693852273,-171.8669828,0.0003314,7]
[355895007,1741693852282,-680.0,0.00033148,2]
[355895008,1741693852292,-680.0,0.00033148,2]
[355895009,1741693852302,-680.0,0.00033148,2]
[355895010,1741693852312,-499.9972816,0.0003315,7]
[355895011,1741693852321,-151.0,0.0003315,14]
[355895012,1741693852331,-151.0,0.0003315,14]
[355895013,1741693852341,-151.0,0.0003315,14]
[355895014,1741693852350,-151.0,0.0003315,14]
[355895015,1741693852360,-152.833308,0.0003315,14]
[355895016,1741693852369,-500.0,0.0003315,7]
[355895017,1741693852379,-500.0,0.0003315,7]
[355895018,1741693852391,-500.0,0.0003315,7]
[355895019,1741693852401,-500.0,0.0003315,7]
[355895020,1741693852410,-500.0,0.0003315,7]
[355895021,1741693852420,-500.0,0.0003315,7]
[355895022,1741693852429,-1242.05,0.0003315,7]
[355895023,1741693852438,-679.02,0.0003315,7]
[355895024,1741693852447,-500.0,0.0003315,7]
[355895025,1741693852457,-220.79674614,0.0003315,7]
[355895026,1741693852467,-500.0,0.0003315,7]
[355895027,1741693852476,-500.0,0.0003315,7]
[355895028,1741693852486,-500.0,0.0003315,7]
[355895029,1741693852495,-500.0,0.0003315,7]
[355895030,1741693852504,-500.0,0.0003315,7]
[355895031,1741693852514,-500.0,0.0003315,7]
[355895032,1741693852523,-558.3,0.0003315,7]
[355895033,1741693852533,-500.0,0.0003315,7]
[355895034,1741693852542,-500.0,0.0003315,7]
[355895035,1741693852552,-151.0,0.0003315,14]
[355895036,1741693852561,-500.0,0.0003315,7]
[355895037,1741693852571,-500.0,0.0003315,7]
[355895038,1741693852580,-500.0,0.0003315,7]
[355895039,1741693852589,-500.0,0.0003315,7]
[355895040,1741693852598,-500.0,0.0003315,7]
[355895041,1741693852608,-542.66380525,0.0003315,7]
[355895042,1741693852617,-520.60396189,0.0003315,7]
[355895043,1741693852627,-500.0,0.0003315,7]
[355895044,1741693852637,-500.0,0.0003315,7]
[355895045,1741693852647,-500.0,0.0003315,7]
[355895046,1741693852656,-594.52,0.0003315,7]
[355895047,1741693852666,-500.0,0.0003315,7]
[355895048,1741693852675,-529.70967319,0.0003315,7]
[355895049,1741693852685,-779.61,0.0003315,7]
[355895050,1741693852694,-500.0,0.0003315,7]
[355895051,1741693852704,-509.01283296,0.0003315,7]
[355895052,1741693852713,-500.0,0.0003315,7]
[355895053,1741693852722,-577.86,0.0003315,7]
[355895054,1741693852732,-500.35772713,0.0003315,7]
[355895055,1741693852742,-500.0,0.0003315,7]
[355895056,1741693852751,-1087.15,0.0003315,7]
[355895057,1741693852761,-536.56063089,0.0003315,7]
[355895058,1741693852771,-822.72,0.0003315,7]
[355895059,1741693852780,-500.0,0.0003315,7]
[355895060,1741693852790,-500.0,0.0003315,7]
[355895061,1741693852799,-559.87582317,0.0003315,7]
[355895062,1741693852809,-747.54,0.0003315,7]
[355895063,1741693852824,-500.0,0.0003315,7]
[355895064,1741693852834,-500.0,0.0003315,7]
[355895065,1741693852844,-500.0,0.0003315,7]
[355895066,1741693852855,-500.0,0.0003315,7]
[355895067,1741693852864,-500.0,0.0003315,7]
[355895068,1741693852874,-500.0,0.0003315,7]
[355895069,1741693852883,-500.0,0.0003315,7]
[355895070,1741693852893,-500.0,0.0003315,7]
[355895071,1741693852903,-500.0,0.0003315,7]
[355895072,1741693852913,-564.55109445,0.0003315,7]
[355895073,1741693852922,-500.0,0.0003315,7]
[355895074,1741693852932,-500.0,0.0003315,7]
[355895075,1741693852941,-483.59074394,0.0003315,7]
[355895076,1741693852951,-500.0,0.0003315,7]
[355895077,1741693852960,-500.0,0.0003315,7]
[355895078,1741693852970,-518.81408279,0.0003315,7]
[355895079,1741693852979,-500.0,0.0003315,7]
[355895080,1741693852988,-500.0,0.0003315,7]
[355895081,1741693852998,-500.0,0.0003315,7]
[355895082,1741693853007,-500.0,0.0003315,7]
[355895083,1741693853017,-728.65,0.0003315,7]
[355895084,1741693853027,-500.0,0.0003315,7]
[355895085,1741693853036,-500.0,0.0003315,7]
[355895086,1741693853046,-500.0,0.0003315,7]
[355895087,1741693853055,-500.0,0.0003315,7]
[355895088,1741693853064,-500.0,0.0003315,7]
[355895089,1741693853074,-729.06,0.0003315,7]
[355895090,1741693853083,-500.0,0.0003315,7]
[355895091,1741693853093,-326.50456539,0.0003315,7]
[355895092,1741693853103,-669.14,0.0003315,7]
[355895093,1741693853112,-523.39448569,0.0003315,7]
[355895094,1741693853122,-500.0,0.0003315,7]
[355895095,1741693853131,-500.0,0.0003315,7]
[355895096,1741693853142,-892.4,0.0003315,7]
[355895097,1741693853152,-521.28815808,0.0003315,7]
[355895098,1741693853161,-500.0,0.0003315,7]
[355895099,1741693853171,-500.0,0.0003315,7]
[355895100,1741693853180,-588.32278404,0.0003315,7]
[355895101,1741693853189,-500.0,0.0003315,7]
[355895102,1741693853199,-500.0,0.0003315,7]
[355895103,1741693853208,-500.0,0.0003315,7]
[355895104,1741693853218,-500.0,0.0003315,7]
[355895105,1741693853227,-357.8895016,0.0003315,7]
[355895106,1741693853237,-302.37525972,0.0003315,7]
[355895107,1741693853247,-921.84,0.0003315,7]
[355895108,1741693853256,-500.0,0.0003315,7]
[355895109,1741693853265,-500.0,0.0003315,7]
[355895110,1741693853275,-500.0,0.0003315,7]
[355895111,1741693853284,-500.0,0.0003315,7]
[355895112,1741693853294,-207.6285424,0.0003315,7]
[355895113,1741693853303,-500.0,0.0003315,7]
[355895114,1741693853312,-500.0,0.0003315,7]
[355895115,1741693853322,-500.0,0.0003315,7]
[355895116,1741693853332,-500.0,0.0003315,7]
[355895117,1741693853341,-500.0,0.0003315,7]
[355895118,1741693853351,-500.0,0.0003315,7]
[355895119,1741693853361,-500.0,0.0003315,7]
[355895120,1741693853370,-500.0,0.0003315,7]
[355895121,1741693853379,-500.0,0.0003315,7]
[355895122,1741693853388,-567.85661692,0.0003315,7]
[355895123,1741693853397,-1238.26,0.0003315,7]
[355895124,1741693853407,-500.0,0.0003315,7]
[355895125,1741693853416,-529.08232979,0.0003315,7]
[355895126,1741693853425,-500.0,0.0003315,7]
[355895127,1741693853435,-500.0,0.0003315,7]
[355895128,1741693853444,-500.0,0.0003315,7]
[355895129,1741693853453,-500.0,0.0003315,7]
[355895130,1741693853463,-500.0,0.0003315,7]
[355895131,1741693853472,-500.0,0.0003315,7]
[355895132,1741693853481,-500.0,0.0003315,7]
[355895133,1741693853491,-500.0,0.0003315,7]
[355895134,1741693853501,-500.0,0.0003315,7]
[355895135,1741693853510,-500.0,0.0003315,7]
[355895136,1741693853519,-500.0,0.0003315,7]
[355895137,1741693853528,-519.94,0.0003315,7]
[355895138,1741693853537,-15051.83,0.0003315,2]
[355895139,1741693853547,-500.0,0.0003315,7]
[355895140,1741693853556,-500.0,0.0003315,7]
[355895141,1741693853565,-500.0,0.0003315,7]
[355895142,1741693853705,-509.19,0.0003315,7]
[355895143,1741693853715,-500.0,0.0003315,7]
[355895144,1741693853724,-500.0,0.0003315,7]
[355895145,1741693853733,-968.97,0.0003315,7]
[355895146,1741693853742,-1143.8,0.0003315,7]
[355895147,1741693853751,-500.0,0.0003315,7]
[355895148,1741693853760,-500.0,0.0003315,7]
[355895149,1741693853770,-542.11338,0.0003315,7]
[355895150,1741693853779,-566.12,0.0003315,7]
[355895151,1741693853789,-500.0,0.0003315,7]
[355895152,1741693853798,-596.43,0.0003315,2]
[355895153,1741693853808,-500.0,0.0003315,7]
[355895154,1741693853822,-1084.05,0.0003315,7]
[355895155,1741693853831,-528.47492931,0.0003315,7]
[355895156,1741693853840,-507.39006803,0.0003315,7]
[355895157,1741693853850,-1252.49,0.0003315,7]
[355895158,1741693853860,-500.0,0.0003315,7]
[355895159,1741693853869,-500.0,0.0003315,7]
[355895160,1741693853879,-500.0,0.0003315,7]
[355895161,1741693853889,-500.0,0.0003315,7]
[355895162,1741693853901,-678.34,0.0003315,7]
[355895163,1741693853910,-500.0,0.0003315,7]
[355895164,1741693853919,-885.32,0.0003315,7]
[355895165,1741693853929,-500.0,0.0003315,2]
[355895166,1741693853938,-500.0,0.0003315,7]
[355895167,1741693853947,-500.0,0.0003315,7]
[355895168,1741693853957,-507.4,0.0003315,7]
[355895169,1741693853966,-500.0,0.0003315,7]
[355895170,1741693853975,-500.0,0.0003315,2]
[355895171,1741693853984,-538.09475354,0.0003315,7]
[355895172,1741693853993,-552.69424193,0.0003315,7]
[355895173,1741693854003,-999.75,0.0003315,7]
[355895174,1741693854012,-500.0,0.0003315,7]
[355895175,1741693854021,-500.0,0.0003315,7]
[355895176,1741693854031,-535.48453671,0.0003315,7]
[355895177,1741693854040,-500.0,0.0003315,2]
[355895178,1741693854049,-500.0,0.0003315,7]
[355895179,1741693854059,-500.0,0.0003315,7]
[355895180,1741693854068,-500.0,0.0003315,7]
[355895181,1741693854078,-500.0,0.0003315,7]
[355895182,1741693854087,-746.38,0.0003315,7]
[355895183,1741693854096,-500.0,0.0003315,7]
[355895184,1741693854106,-500.0,0.0003315,2]
[355895185,1741693854115,-511.94,0.0003315,7]
[355895186,1741693854125,-500.0,0.0003315,7]
[355895187,1741693854134,-500.0,0.0003315,7]
[355895188,1741693854144,-628.75,0.0003315,7]
[355895189,1741693854154,-657.55,0.0003315,7]
[355895190,1741693854163,-948.93,0.0003315,7]
[355895191,1741693854173,-500.0,0.0003315,7]
[355895192,1741693854183,-851.52,0.0003315,7]
[355895193,1741693854195,-500.0,0.0003315,5]
[355895194,1741693854204,-500.0,0.0003315,7]
[355895195,1741693854215,-556.34792247,0.0003315,7]
[355895196,1741693854224,-500.0,0.0003315,7]
[355895197,1741693854234,-500.0,0.0003315,7]
[355895198,1741693854243,-1890.81,0.0003315,7]
[355895199,1741693854253,-500.0,0.0003315,7]
[355895200,1741693854262,-500.0,0.0003315,7]
[355895201,1741693854272,-500.0,0.0003315,7]
[355895202,1741693854281,-507.95,0.0003315,7]
[355895203,1741693854290,-437.69272959,0.0003315,7]
[355895204,1741693854299,-500.0,0.0003315,7]
[355895205,1741693854308,-1877.82,0.0003315,7]
[355895206,1741693854318,-500.0,0.0003315,7]
[355895207,1741693854327,-714.91,0.0003315,7]
[355895208,1741693854336,-500.0,0.0003315,7]
[355895209,1741693854346,-500.0,0.0003315,7]
[355895210,1741693854355,-500.0,0.0003315,7]
[355895211,1741693854364,-500.0,0.0003315,7]
[355895212,1741693854374,-1385.44,0.0003315,7]
[355895213,1741693854384,-532.07268586,0.0003315,7]
[355895214,1741693854393,-500.0,0.0003315,7]
[355895215,1741693854403,-500.0,0.0003315,7]
[355895216,1741693854412,-500.0,0.0003315,7]
[355895217,1741693854421,-499.0177854,0.0003315,7]
[355895218,1741693854430,-500.0,0.0003315,7]
[355895219,1741693854440,-500.0,0.0003315,7]
[355895220,1741693854448,-438.96340615,0.0003315,7]
[355895221,1741693854458,-856.47,0.0003315,7]
[355895222,1741693854468,-500.0,0.0003315,7]
[355895223,1741693854476,-500.0,0.0003315,7]
[355895224,1741693854486,-500.0,0.0003315,7]
[355895225,1741693854495,-500.0,0.0003315,7]
[355895226,1741693854504,-500.0,0.0003315,7]
[355895227,1741693854513,-875.22,0.0003315,7]
[355895228,1741693854522,-2436.43,0.0003315,7]
[355895229,1741693854532,-500.0,0.0003315,7]
[355895230,1741693854541,-500.0,0.0003315,7]
[355895231,1741693854557,-500.0,0.0003315,7]
[355895232,1741693854566,-500.0,0.0003315,7]
[355895233,1741693854575,-500.0,0.0003315,7]
[355895234,1741693854585,-500.0,0.0003315,7]
[355895235,1741693854594,-500.0,0.0003315,7]
[355895236,1741693854603,-1037.59,0.0003315,7]
[355895237,1741693854613,-500.0,0.0003315,7]
[355895238,1741693854622,-500.0,0.0003315,7]
[355895239,1741693854632,-823.97,0.0003315,7]
[355895240,1741693854642,-500.0,0.0003315,7]
[355895241,1741693854651,-500.0,0.0003315,7]
[355895242,1741693854661,-500.0,0.0003315,7]
[355895243,1741693854670,-500.0,0.0003315,7]
[355895244,1741693854679,-1007.62895876,0.0003315,5]
[355895245,1741693854688,-500.0,0.0003315,7]
[355895246,1741693854697,-1353.63,0.0003315,7]
[355895247,1741693854708,-500.0,0.0003315,7]
[355895248,1741693854717,-500.0,0.0003315,7]
[355895249,1741693854727,-500.0,0.0003315,7]
[355895250,1741693854736,-777.69,0.0003315,7]
[355895251,1741693854747,-509.16841289,0.0003315,7]
[355895252,1741693854756,-306.15550692,0.0003315,7]
[355895253,1741693854766,-500.0,0.0003315,7]
[355895254,1741693854776,-500.0,0.0003315,7]
[355895255,1741693854786,-500.0,0.0003315,7]
[355895256,1741693854796,-500.0,0.0003315,7]
[355895257,1741693854805,-500.0,0.0003315,7]
[355895258,1741693854815,-500.0,0.0003315,7]
[355895259,1741693854828,-500.0,0.0003315,7]
[355895260,1741693854837,-553.55229947,0.0003315,7]
[355895261,1741693854847,-885.56,0.0003315,7]
[355895262,1741693854856,-1051.65,0.0003315,7]
[355895263,1741693854867,-500.0,0.0003315,7]
[355895264,1741693854877,-637.59,0.0003315,7]
[355895265,1741693854886,-500.0,0.0003315,7]
[355895266,1741693854898,-500.0,0.0003315,7]
[355895267,1741693854908,-500.0,0.0003315,7]
[355895268,1741693854918,-500.0,0.0003315,7]
[355895269,1741693854929,-915.46,0.0003315,7]
[355895270,1741693854939,-500.0,0.0003315,7]
[355895271,1741693854948,-500.0,0.0003315,7]
[355895272,1741693854958,-500.0,0.0003315,7]
[355895273,1741693854968,-572.43,0.0003315,7]
[355895274,1741693854978,-729.9,0.0003315,7]
[355895275,1741693854988,-521.44601126,0.0003315,7]
[355895276,1741693854998,-817.53,0.0003315,7]
[355895277,1741693855009,-500.0,0.0003315,7]
[355895278,1741693855019,-500.0,0.0003315,7]
[355895279,1741693855029,-564.14124622,0.0003315,7]
[355895280,1741693855038,-523.91657386,0.0003315,7]
[355895281,1741693855048,-500.0,0.0003315,7]
[355895282,1741693855058,-507.96455444,0.0003315,7]
[355895283,1741693855067,-532.15,0.0003315,7]
[355895284,1741693855077,-500.0,0.0003315,7]
[355895285,1741693855087,-500.0,0.0003315,7]
[355895286,1741693855096,-500.0,0.0003315,7]
[355895287,1741693855107,-517.91013905,0.0003315,7]
[355895288,1741693855116,-518.73032273,0.0003315,7]
[355895289,1741693855126,-500.0,0.0003315,7]
[355895290,1741693855137,-500.0,0.0003315,7]
[355895291,1741693855146,-989.59,0.0003315,7]
[355895292,1741693855155,-500.0,0.0003315,7]
[355895293,1741693855165,-500.0,0.0003315,7]
[355895294,1741693855175,-500.0,0.0003315,7]
[355895295,1741693855185,-500.0,0.0003315,7]
[355895296,1741693855195,-500.0,0.0003315,7]
[355895297,1741693855205,-500.0,0.0003315,7]
[355895298,1741693855215,-500.0,0.0003315,7]
[355895299,1741693855224,-500.0,0.0003315,7]
[355895300,1741693855233,-3643.28,0.0003315,7]
[355895301,1741693855243,-500.0,0.0003315,7]
[355895302,1741693855252,-553.1300566,0.0003315,7]
[355895303,1741693855263,-500.0,0.0003315,7]
[355895304,1741693855272,-500.0,0.0003315,7]
[355895305,1741693855282,-500.0,0.0003315,7]
[355895306,1741693855291,-500.0,0.0003315,7]
[355895307,1741693855301,-500.0,0.0003315,7]
[355895308,1741693855310,-1053.53,0.0003315,7]
[355895309,1741693855320,-514.73343488,0.0003315,7]
[355895310,1741693855328,-500.0,0.0003315,7]
[355895311,1741693855338,-567.23,0.0003315,7]
[355895312,1741693855347,-500.0,0.0003315,7]
[355895313,1741693855357,-3599.4,0.0003315,7]
[355895314,1741693855365,-500.0,0.0003315,7]
[355895315,1741693855375,-500.0,0.0003315,7]
[355895316,1741693855384,-500.0,0.0003315,7]
[355895317,1741693855394,-500.0,0.0003315,7]
[355895318,1741693855403,-528.29323563,0.0003315,7]
[355895319,1741693855412,-500.0,0.0003315,7]
[355895320,1741693855421,-668.49,0.0003315,7]
[355895321,1741693855431,-500.0,0.0003315,7]
[355895322,1741693855441,-500.0,0.0003315,7]
[355895323,1741693855451,-500.0,0.0003315,7]
[355895324,1741693855460,-500.0,0.0003315,7]
[355895325,1741693855471,-503.40769548,0.0003315,7]
[355895326,1741693855480,-1199.2,0.0003315,7]
[355895327,1741693855489,-500.0,0.0003315,7]
[355895328,1741693855498,-500.0,0.0003315,7]
[355895329,1741693855508,-500.0,0.0003315,7]
[355895330,1741693855518,-383.19972971,0.0003315,7]
[355895331,1741693855527,-500.0,0.0003315,7]
[355895332,1741693855537,-500.0,0.0003315,7]
[355895333,1741693855546,-1164.25,0.0003315,7]
[355895334,1741693855555,-500.0,0.0003315,7]
[355895335,1741693855564,-529.33305753,0.0003315,7]
[355895336,1741693855574,-807.36,0.0003315,3]
[355895337,1741693855583,-500.0,0.0003315,7]
[355895338,1741693855592,-500.0,0.0003315,7]
[355895339,1741693855602,-529.21616675,0.0003315,7]
[355895340,1741693855611,-500.0,0.0003315,7]
[355895341,1741693855620,-518.30739107,0.0003315,7]
[355895342,1741693855629,-920.66,0.0003315,7]
[355895343,1741693855638,-841.31,0.0003315,7]
[355895344,1741693855648,-500.0,0.0003315,7]
[355895345,1741693855657,-829.94,0.0003315,7]
[355895346,1741693855667,-500.0,0.0003315,7]
[355895347,1741693855676,-567.72334362,0.0003315,7]
[355895348,1741693855881,-500.0,0.0003315,7]
[355895349,1741693855893,-500.0,0.0003315,7]
[355895350,1741693855904,-407.71525998,0.0003315,7]
[355895351,1741693855914,-500.0,0.0003315,7]
[355895352,1741693855924,-500.0,0.0003315,7]
[355895353,1741693855933,-679.48,0.0003315,7]
[355895354,1741693855943,-500.0,0.0003315,7]
[355895355,1741693855953,-500.0,0.0003315,7]
[355895356,1741693855962,-500.0,0.0003315,7]
[355895357,1741693855972,-500.0,0.0003315,7]
[355895358,1741693855982,-500.0,0.0003315,7]
[355895359,1741693855991,-630.02,0.0003315,7]
[355895360,1741693856001,-500.0,0.0003315,7]
[355895361,1741693856010,-726.55,0.0003315,7]
[355895362,1741693856020,-538.01,0.0003315,7]
[355895363,1741693856030,-1318.79,0.0003315,7]
[355895364,1741693856039,-500.0,0.0003315,7]
[355895365,1741693856049,-510.39669128,0.0003315,7]
[355895366,1741693856058,-500.0,0.0003315,7]
[355895367,1741693856068,-500.0,0.0003315,7]
[355895368,1741693856078,-500.0,0.0003315,120]
[355895369,1741693856087,-500.0,0.0003315,7]
[355895370,1741693856098,-500.0,0.0003315,7]
[355895371,1741693856107,-500.0,0.0003315,7]
[355895372,1741693856117,-2980.32,0.0003315,7]
[355895373,1741693856126,-500.0,0.0003315,7]
[355895374,1741693856136,-500.0,0.0003315,7]
[355895375,1741693856147,-502.27,0.0003315,7]
[355895376,1741693856157,-500.0,0.0003315,7]
[355895377,1741693856166,-500.0,0.0003315,7]
[355895378,1741693856176,-1066.91,0.0003315,7]
[355895379,1741693856186,-1022.06,0.0003315,7]
[355895380,1741693856196,-500.0,0.0003315,7]
[355895381,1741693856207,-500.0,0.0003315,7]
[355895382,1741693856217,-500.0,0.0003315,7]
[355895383,1741693856230,-500.0,0.0003315,7]
[355895384,1741693856239,-500.0,0.0003315,7]
[355895385,1741693856250,-760.7,0.0003315,7]
[355895386,1741693856260,-1520.1,0.0003315,7]
[355895387,1741693856269,-500.0,0.0003315,7]
[355895388,1741693856279,-550.91881742,0.0003315,7]
[355895389,1741693856289,-500.0,0.0003315,2]
[355895390,1741693856298,-687.47,0.0003315,7]
[355895391,1741693856307,-500.0,0.0003315,7]
[355895392,1741693856317,-511.54,0.0003315,7]
[355895393,1741693856327,-798.58,0.0003315,7]
[355895394,1741693856337,-893.83,0.0003315,7]
[355895395,1741693856347,-794.48,0.0003315,7]
[355895396,1741693856357,-404.58388156,0.0003315,7]
[355895397,1741693856367,-500.0,0.0003315,7]
[355895398,1741693856377,-5606.8,0.0003315,7]
[355895399,1741693856386,-597.49,0.0003315,7]
[355895400,1741693856397,-937.7,0.0003315,7]
[355895401,1741693856406,-500.0,0.0003315,7]
[355895402,1741693856415,-1569.23,0.0003315,7]
[355895403,1741693856426,-2192.56,0.0003315,7]
[355895404,1741693856436,-500.0,0.0003315,7]
[355895405,1741693856445,-500.0,0.0003315,7]
[355895406,1741693856455,-500.0,0.0003315,7]
[355895407,1741693856464,-1864.01,0.0003315,7]
[355895408,1741693856474,-7718.38,0.0003315,7]
[355895409,1741693856483,-860.11,0.0003315,7]
[355895410,1741693856493,-1264.01,0.0003315,7]
[355895411,1741693856503,-500.0,0.0003315,7]
[355895412,1741693856512,-1311.26,0.0003315,7]
[355895413,1741693856522,-507.92,0.0003315,7]
[355895414,1741693856532,-527.31280979,0.0003315,7]
[355895415,1741693856542,-1098.83,0.0003315,7]
[355895416,1741693856552,-180220.75,0.0003315,7]
[355895417,1741693856561,-527.74057109,0.0003315,7]
[355895418,1741693856572,-500.0,0.0003315,7]
[355895419,1741693856582,-500.0,0.0003315,7]
[355895420,1741693856592,-1489.5,0.0003315,7]
[355895421,1741693856602,-1061.34,0.0003315,7]
[355895422,1741693856612,-500.0,0.0003315,7]
[355895423,1741693856622,-500.0,0.0003315,7]
[355895424,1741693856631,-500.0,0.0003315,7]
[355895425,1741693856642,-1317.81,0.0003315,7]
[355895426,1741693856652,-500.0,0.0003315,7]
[355895427,1741693856662,-1369.42,0.0003315,7]
[355895428,1741693856672,-728.56,0.0003315,7]
[355895429,1741693856681,-1409.57,0.0003315,7]
[355895430,1741693856690,-500.0,0.0003315,7]